fUST/lending_fUST_20240301
["ID","MTS","AMOUNT","RATE_DAILY","PERIOD"]
[315882883,1709243451945,-157.08,0.00020999,2]
[315882885,1709243451954,-500.0,0.00020999,2]
[315882887,1709243451963,-500.0,0.00020999,2]
[315882889,1709243451972,-500.0,0.00020999,2]
[315882891,1709243451981,-500.0,0.00020999,2]
[315882893,1709243451990,-500.0,0.00020999,2]
[315882895,1709243451998,-244.87,0.00020999,2]
[315882897,1709243452007,-504.24,0.00020999,2]
[315882899,1709243452016,-500.0,0.00020999,2]
[315882901,1709243452025,-500.0,0.00020999,2]
[315882903,1709243452035,-500.0,0.00020999,2]
[315882905,1709243452044,-500.0,0.00020999,2]
[315882907,1709243452052,-500.0,0.00020999,2]
[315882909,1709243452062,-500.0,0.00020999,2]
[315882911,1709243452070,-500.0,0.00020999,2]
[315882913,1709243452079,-500.0,0.00020999,2]
[315882915,1709243452089,-500.0,0.00020999,2]
[315882917,1709243452098,-500.0,0.00020999,2]
[315882919,1709243452108,-500.0,0.00020999,2]
[315882921,1709243452117,-500.0,0.00020999,2]
[315882923,1709243452126,-500.0,0.00020999,2]
[315882925,1709243452135,-500.0,0.00020999,2]
[315882927,1709243452144,-500.0,0.00020999,2]
[315882929,1709243452154,-500.0,0.00020999,2]
[315882931,1709243452163,-500.0,0.00020999,2]
[315882933,1709243452174,-500.0,0.00020999,2]
[315882935,1709243452184,-500.0,0.00020999,2]
[315882937,1709243452194,-500.0,0.00020999,2]
[315882939,1709243452204,-500.0,0.00020999,2]
[315882941,1709243452215,-500.0,0.00020999,2]
[315882943,1709243452225,-500.0,0.00020999,2]
[315882945,1709243452235,-415.6874877,0.00020999,2]
[315882947,1709243452243,-500.0,0.00020999,2]
[315882949,1709243452252,-341.71,0.00020999,2]
[315882951,1709243452261,-500.0,0.00020999,2]
[315882960,1709243452345,-330.54,0.00020999,2]
[315882962,1709243452354,-500.0,0.00020999,2]
[315882964,1709243452363,-1702.38,0.00020999,2]
[315882966,1709243452372,-1702.38,0.00020999,2]
[315882968,1709243452382,-1702.38,0.00020999,2]
[315882970,1709243452392,-1702.38,0.00020999,2]
[315882972,1709243452400,-1702.38,0.00020999,2]
[315882974,1709243452411,-1702.38,0.00020999,2]
[315882976,1709243452420,-1702.38,0.00020999,2]
[315882978,1709243452428,-1702.38,0.00020999,2]
[315882980,1709243452438,-1702.38,0.00020999,2]
[315882982,1709243452447,-1702.38,0.00020999,2]
[315882984,1709243452456,-1702.38,0.00020999,2]
[315882986,1709243452466,-1702.38,0.00020999,2]
[315882988,1709243452475,-1702.38,0.00020999,2]
[315882990,1709243452485,-1702.38,0.00020999,2]
[315882992,1709243452495,-1702.38,0.00020999,2]
[315882994,1709243452504,-1702.5,0.00020999,2]
[315882996,1709243452514,-102355.06835295,0.00021,2]
[315883000,1709243452548,-863.63193529,0.00021,2]
[315883003,1709243452559,-2394.56600495,0.00021,2]
[315883005,1709243452571,-36963.96095465,0.00021,2]
[315883007,1709243452582,-2484.0,0.00021,2]
[315883009,1709243452593,-7192.81125484,0.00021,2]
[315883011,1709243452604,-7424.0,0.00021,2]
[315883014,1709243452615,-4331.866208,0.00021,2]
[315883016,1709243452626,-1666.5,0.00021,2]
[315883018,1709243452638,-348.89256572,0.00021,2]
[315884000,1709244633699,-297.44020992,0.000189,2]
[315884001,1709244633709,-162.218823,0.00019574,2]
[315884002,1709244633719,-169.8050657,0.0002,2]
[315884003,1709244633729,-44185.86242065,0.0002,2]
[315884034,1709244637902,-1249.18437681,0.0002,2]
[315884035,1709244637914,-2317.59611546,0.0002,2]
[315884036,1709244637926,-4144.57719808,0.0002,2]
[315884037,1709244637936,-155.0,0.0002,2]
[315884038,1709244637946,-576.76843598,0.00020186,5]
[315884039,1709244637955,-1011.5537203,0.00020229,2]
[315884040,1709244637967,-4666.1650672,0.00020229,2]
[315884041,1709244637978,-2322.2812125,0.00020229,2]
[315884042,1709244637989,-614.04,0.00020547,2]
[315884043,1709244637999,-632.69582414,0.00020706,2]
[315884044,1709244638008,-214.9958699,0.000208,2]
[315884045,1709244638018,-200.6643816,0.000208,2]
[315884046,1709244638027,-200.6643816,0.000208,2]
[315884047,1709244638037,-200.5591002,0.000208,2]
[315884048,1709244638047,-153.0,0.000208,2]
[315884049,1709244638056,-244.0041301,0.000208,2]
[315884050,1709244638066,-153.0,0.000208,2]
[315884051,1709244638168,-454.34,0.00020889,3]
[315884052,1709244638180,-378.62,0.00020889,3]
[315884053,1709244638190,-315.51,0.00020889,3]
[315884054,1709244638199,-262.93,0.00020889,3]
[315884055,1709244638208,-614.04,0.00020898,2]
[315884056,1709244638218,-500.0,0.00020899,2]
[315884057,1709244638227,-400.0,0.00020899,2]
[315884058,1709244638237,-500.0,0.00020899,2]
[315884059,1709244638245,-500.0,0.00020899,2]
[315884060,1709244638255,-500.0,0.00020899,2]
[315884061,1709244638264,-167.91849537,0.00020899,2]
[315884062,1709244638273,-500.0,0.00020899,2]
[315884063,1709244638283,-500.0,0.00020899,2]
[315884064,1709244638292,-500.0,0.00020899,2]
[315884065,1709244638301,-500.0,0.00020899,2]
[315884066,1709244638311,-500.0,0.00020899,2]
[315884067,1709244638320,-501.08133032,0.00020899,2]
[315884068,1709244638329,-500.0,0.00020899,2]
[315884069,1709244638339,-500.0,0.00020899,2]
[315884070,1709244638348,-502.42020174,0.00020899,2]
[315884071,1709244638357,-500.0,0.00020899,2]
[315884072,1709244638367,-500.0,0.00020899,2]
[315884073,1709244638379,-500.0,0.00020899,2]
[315884074,1709244638388,-258.11466525,0.00020899,2]
[315884075,1709244638398,-500.0,0.00020899,2]
[315884076,1709244638407,-500.0,0.00020899,2]
[315884077,1709244638417,-500.0,0.00020899,2]
[315884078,1709244638426,-500.0,0.00020899,2]
[315884079,1709244638435,-500.0,0.00020899,2]
[315884080,1709244638444,-500.0,0.00020899,2]
[315884081,1709244638454,-500.0,0.00020899,2]
[315884082,1709244638463,-500.0,0.00020899,2]
[315884083,1709244638472,-500.0,0.00020899,2]
[315884084,1709244638481,-500.0,0.00020899,2]
[315884085,1709244638490,-500.0,0.00020899,2]
[315884086,1709244638499,-500.0,0.00020899,2]
[315884087,1709244638508,-96.83890236,0.00020899,2]
[315884105,1709244643007,-403.16109764,0.00020899,2]
[315884107,1709244643017,-500.0,0.00020899,2]
[315884109,1709244643027,-500.0,0.00020899,2]
[315884111,1709244643037,-500.0,0.00020899,2]
[315884113,1709244643047,-200.6643816,0.000209,2]
[315884115,1709244643058,-306.0,0.000209,2]
[315884116,1709244643067,-2309.82464442,0.00020977,2]
[315884117,1709244643080,-5256.29936526,0.00020977,2]
[315884118,1709244643090,-500.0,0.00020987,2]
[315884119,1709244643099,-500.0,0.00020987,2]
[315884120,1709244643108,-500.0,0.00020987,2]
[315884122,1709244643117,-500.0,0.00020987,2]
[315884124,1709244643128,-219.11,0.00020989,3]
[315884125,1709244643138,-500.0,0.00020995,2]
[315884126,1709244643147,-593.72,0.00020995,2]
[315884128,1709244643156,-500.0,0.00020995,2]
[315884129,1709244643165,-500.0,0.00020995,2]
[315884131,1709244643174,-500.0,0.00020995,2]
[315884133,1709244643183,-500.78026643,0.00020996,2]
[315884135,1709244643192,-500.0,0.00020996,2]
[315884137,1709244643201,-500.0,0.00020996,2]
[315884139,1709244643211,-500.0,0.00020996,2]
[315884141,1709244643220,-500.0,0.00020996,2]
[315884143,1709244643229,-500.0,0.00020996,2]
[315884144,1709244643238,-500.0,0.00020996,2]
[315884146,1709244643247,-500.0,0.00020996,2]
[315884147,1709244643256,-500.0,0.00020996,2]
[315884148,1709244643265,-500.0,0.00020996,2]
[315884149,1709244643275,-500.0,0.00020996,2]
[315884150,1709244643283,-513.42,0.00020996,2]
[315884151,1709244643292,-500.0,0.00020996,2]
[315884152,1709244643301,-500.0,0.00020996,2]
[315884153,1709244643310,-475.99993128,0.00020997,2]
[315884154,1709244643319,-500.0,0.00020997,2]
[315884155,1709244643328,-198.58,0.00020997,2]
[315884156,1709244643338,-500.0,0.00020997,2]
[315884157,1709244643347,-418.23,0.00020997,2]
[315884158,1709244643356,-297.54,0.00020997,2]
[315884159,1709244643365,-500.0,0.00020997,2]
[315884160,1709244643377,-500.0,0.00020997,2]
[315884161,1709244643386,-500.0,0.00020997,2]
[315884162,1709244643395,-500.0,0.00020997,2]
[315884163,1709244643404,-531.94,0.00020997,2]
[315884164,1709244643413,-500.0,0.00020997,2]
[315884165,1709244643422,-500.0,0.00020997,2]
[315884166,1709244643431,-529.75,0.00020997,2]
[315884167,1709244643440,-500.0,0.00020997,2]
[315884168,1709244643449,-614.04,0.00020997,2]
[315884169,1709244643459,-500.0,0.00020997,2]
[315884170,1709244643468,-500.0,0.00020997,2]
[315884171,1709244643477,-500.0,0.00020997,2]
[315884172,1709244643486,-500.0,0.00020997,2]
[315884173,1709244643496,-593.59,0.00020997,2]
[315884174,1709244643505,-473.13,0.00020997,2]
[315884175,1709244643514,-500.0,0.00020997,2]
[315884176,1709244643522,-500.0,0.00020997,2]
[315884177,1709244643531,-500.0,0.00020997,2]
[315884178,1709244643540,-500.0,0.00020997,2]
[315884179,1709244643549,-500.0,0.00020997,2]
[315884180,1709244643558,-500.0,0.00020997,2]
[315884181,1709244643567,-500.0,0.00020997,2]
[315884182,1709244643576,-500.0,0.00020997,2]
[315884183,1709244643585,-500.0,0.00020997,2]
[315884184,1709244643594,-193.84059037,0.00020998,2]
[315884185,1709244643603,-500.0,0.00020998,2]
[315884186,1709244643612,-500.0,0.00020998,2]
[315884187,1709244643622,-500.0,0.00020998,2]
[315884188,1709244643631,-521.99192232,0.00020998,2]
[315884189,1709244643642,-486.0,0.00020998,2]
[315884190,1709244643651,-500.0,0.00020998,2]
[315884191,1709244643660,-500.0,0.00020998,2]
[315884192,1709244643669,-500.0,0.00020998,2]
[315884193,1709244643678,-500.0,0.00020998,2]
[315884194,1709244643687,-500.0,0.00020998,2]
[315884195,1709244643696,-500.0,0.00020998,2]
[315884196,1709244643706,-500.0,0.00020998,2]
[315884197,1709244643716,-466.02,0.00020998,2]
[315884198,1709244643724,-585.57358199,0.00020998,2]
[315884199,1709244643733,-500.0,0.00020998,2]
[315884200,1709244643742,-500.45932611,0.00020998,2]
[315884201,1709244643751,-500.0,0.00020998,2]
[315884202,1709244643760,-500.0,0.00020998,2]
[315884203,1709244643769,-500.0,0.00020998,2]
[315884204,1709244643777,-500.0,0.00020998,2]
[315884205,1709244643787,-500.6215968,0.00020998,2]
[315884206,1709244643796,-500.0,0.00020998,2]
[315884207,1709244643807,-262.36,0.00020998,2]
[315884208,1709244643816,-500.0,0.00020998,2]
[315884209,1709244643826,-500.0,0.00020998,2]
[315884210,1709244643835,-500.0,0.00020998,2]
[315884211,1709244643845,-500.0,0.00020998,2]
[315884212,1709244643854,-433.0,0.00020998,2]
[315884213,1709244643863,-500.0,0.00020998,2]
[315884214,1709244643874,-500.0,0.00020998,2]
[315884215,1709244643883,-199.04,0.00020998,2]
[315884216,1709244643892,-614.04,0.00020998,2]
[315884217,1709244643902,-533.11,0.00020998,2]
[315884218,1709244643911,-404.16,0.00020998,2]
[315884219,1709244643920,-500.0,0.00020998,2]
[315884220,1709244643929,-59.47947042,0.00020998,2]
[315884221,1709244643980,-440.52052958,0.00020998,2]
[315884222,1709244643990,-500.78,0.00020998,2]
[315884223,1709244643999,-593.59,0.00020998,2]
[315884224,1709244644008,-500.0,0.00020998,2]
[315884225,1709244644017,-500.0,0.00020998,2]
[315884226,1709244644030,-500.0,0.00020998,2]
[315884227,1709244644039,-169.22131761,0.00020998,2]
[315884228,1709244644048,-500.0,0.00020998,2]
[315884229,1709244644057,-500.0,0.00020998,2]
[315884230,1709244644067,-500.0,0.00020998,2]
[315884231,1709244644076,-133.55247288,0.00020998,2]
[315884235,1709244645934,-366.44752712,0.00020998,2]
[315884236,1709244645944,-500.0,0.00020998,2]
[315884238,1709244645952,-395.12,0.00020998,2]
[315884240,1709244645962,-500.0,0.00020998,2]
[315884242,1709244645971,-500.0,0.00020999,2]
[315884244,1709244645980,-500.0,0.00020999,2]
[315884246,1709244645989,-578.8,0.00020999,2]
[315884247,1709244645999,-402.01,0.00020999,2]
[315884249,1709244646008,-500.0,0.00020999,2]
[315884250,1709244646018,-614.04,0.00020999,2]
[315884251,1709244646028,-614.04,0.00020999,2]
[315884252,1709244646037,-614.04,0.00020999,2]
[315884253,1709244646046,-614.04,0.00020999,2]
[315884254,1709244646055,-614.04,0.00020999,2]
[315884255,1709244646064,-614.04,0.00020999,2]
[315884256,1709244646074,-614.04,0.00020999,2]
[315884257,1709244646083,-614.04,0.00020999,2]
[315884258,1709244646092,-614.04,0.00020999,2]
[315884259,1709244646101,-614.04,0.00020999,2]
[315884260,1709244646110,-614.04,0.00020999,2]
[315884261,1709244646120,-614.04,0.00020999,2]
[315884262,1709244646131,-614.04,0.00020999,2]
[315884263,1709244646139,-614.04,0.00020999,2]
[315884264,1709244646149,-614.04,0.00020999,2]
[315884265,1709244646158,-614.04,0.00020999,2]
[315884266,1709244646167,-614.04,0.00020999,2]
[315884267,1709244646176,-614.04,0.00020999,2]
[315884268,1709244646185,-614.04,0.00020999,2]
[315884269,1709244646194,-614.23,0.00020999,2]
[315884270,1709244646204,-593.59,0.00020999,2]
[315884271,1709244646213,-593.59,0.00020999,2]
[315884272,1709244646222,-593.59,0.00020999,2]
[315884273,1709244646231,-593.59,0.00020999,2]
[315884274,1709244646240,-593.59,0.00020999,2]
[315884275,1709244646249,-593.59,0.00020999,2]
[315884276,1709244646258,-593.59,0.00020999,2]
[315884277,1709244646267,-593.59,0.00020999,2]
[315884278,1709244646276,-593.59,0.00020999,2]
[315884279,1709244646286,-593.59,0.00020999,2]
[315884280,1709244646295,-593.59,0.00020999,2]
[315884281,1709244646304,-593.59,0.00020999,2]
[315884282,1709244646313,-331.47710188,0.00020999,2]
[315884319,1709245835380,-517.22120211,0.000189,2]
[315884321,1709245835390,-162.218823,0.00019724,2]
[315884324,1709245835400,-300.0,0.00019823,2]
[315884325,1709245835409,-416.76799551,0.00019824,2]
[315884328,1709245835421,-581.71068819,0.00019824,2]
[315884330,1709245835432,-497.96942966,0.00019824,2]
[315884397,1709245838989,-3451.21448264,0.00019824,2]
[315884398,1709245839001,-14314.9475404,0.00019824,2]
[315884399,1709245839010,-169.20709665,0.00020447,2]
[315884400,1709245839019,-3549.58350935,0.00020514,2]
[315884401,1709245839029,-513.60710709,0.00020547,2]
[315884402,1709245839039,-500.0,0.00020547,2]
[315884403,1709245839048,-500.0,0.00020547,2]
[315884404,1709245839057,-500.0,0.00020547,2]
[315884405,1709245839066,-500.0,0.00020547,2]
[315884406,1709245839075,-501.19805669,0.00020547,2]
[315884407,1709245839084,-500.0,0.00020547,2]
[315884408,1709245839095,-500.0,0.00020547,2]
[315884409,1709245839103,-500.0,0.00020547,2]
[315884410,1709245839112,-500.88575754,0.00020547,2]
[315884411,1709245839121,-500.0,0.00020547,2]
[315884412,1709245839131,-500.69279678,0.00020547,2]
[315884413,1709245839139,-500.0,0.00020547,2]
[315884414,1709245839148,-220.13687873,0.00020547,2]
[315884415,1709245839157,-500.0,0.00020547,2]
[315884416,1709245839166,-500.0,0.00020547,2]
[315884417,1709245839176,-500.0,0.00020547,2]
[315884418,1709245839185,-500.0,0.00020547,2]
[315884419,1709245839194,-17.84952256,0.00020547,2]
[315884430,1709245841176,-482.15047744,0.00020547,2]
[315884431,1709245841186,-500.0,0.00020547,2]
[315884432,1709245841196,-501.2410921,0.00020547,2]
[315884433,1709245841205,-84.10843046,0.00020547,2]
[315884434,1709245841217,-416.89446691,0.00020547,2]
[315884435,1709245841226,-500.0,0.00020547,2]
[315884436,1709245841236,-500.0,0.00020547,2]
[315884437,1709245841246,-501.35474183,0.00020547,2]
[315884438,1709245841255,-500.0,0.00020547,2]
[315884439,1709245841265,-500.0,0.00020547,2]
[315884440,1709245841274,-500.0,0.00020547,2]
[315884441,1709245841284,-500.0,0.00020547,2]
[315884442,1709245841293,-103.73745394,0.00020547,2]
[315884443,1709245841307,-396.26254606,0.00020547,2]
[315884444,1709245841316,-500.0,0.00020547,2]
[315884445,1709245841326,-200.47368136,0.000207,2]
[315884446,1709245841335,-250.9434928,0.00020887,2]
[315884447,1709245841347,-539.37512434,0.00020897,2]
[315884448,1709245841356,-501.24576751,0.00020898,2]
[315884449,1709245841365,-500.0,0.00020898,2]
[315884450,1709245841375,-500.0,0.00020898,2]
[315884451,1709245841385,-500.0,0.00020898,2]
[315884452,1709245841395,-500.0,0.00020898,2]
[315884453,1709245841404,-500.0,0.00020898,2]
[315884454,1709245841412,-1137.87,0.00020898,2]
[315884455,1709245841422,-500.0,0.00020898,2]
[315884456,1709245841431,-500.0,0.00020898,2]
[315884457,1709245841440,-500.0,0.00020899,2]
[315884458,1709245841449,-500.0,0.00020899,2]
[315884459,1709245841458,-501.25122817,0.00020899,2]
[315884460,1709245841467,-500.0,0.00020899,2]
[315884461,1709245841476,-500.0,0.00020899,2]
[315884462,1709245841486,-500.0,0.00020899,2]
[315884463,1709245841495,-500.0,0.00020899,2]
[315884464,1709245841504,-500.0,0.00020899,2]
[315884465,1709245841513,-500.75811123,0.00020899,2]
[315884466,1709245841523,-500.0,0.00020899,2]
[315884467,1709245841532,-552.01,0.00020899,2]
[315884468,1709245841541,-500.0,0.00020899,2]
[315884469,1709245841551,-500.0,0.00020899,2]
[315884470,1709245841560,-500.0,0.00020899,2]
[315884471,1709245841569,-500.0,0.00020899,2]
[315884472,1709245841578,-228.11247072,0.00020899,2]
[315884473,1709245841588,-501.95677342,0.00020899,2]
[315884474,1709245841599,-500.0,0.00020899,2]
[315884475,1709245841608,-56.81313527,0.00020899,2]
[315884476,1709245841620,-443.18686473,0.00020899,2]
[315884477,1709245841629,-500.0,0.00020899,2]
[315884478,1709245841638,-500.0,0.00020899,2]
[315884479,1709245841647,-500.0,0.00020899,2]
[315884480,1709245841656,-500.0,0.00020899,2]
[315884481,1709245841665,-501.78089379,0.00020899,2]
[315884482,1709245841675,-500.0,0.00020899,2]
[315884483,1709245841684,-500.0,0.00020899,2]
[315884484,1709245841694,-500.0,0.00020899,2]
[315884485,1709245841703,-500.0,0.00020899,2]
[315884486,1709245841711,-500.0,0.00020899,2]
[315884487,1709245841721,-500.0,0.00020899,2]
[315884488,1709245841730,-500.0,0.00020899,2]
[315884489,1709245841740,-500.0,0.00020899,2]
[315884490,1709245841749,-500.0,0.00020899,2]
[315884491,1709245841758,-500.81651721,0.00020899,2]
[315884492,1709245841767,-500.0,0.00020899,2]
[315884493,1709245841776,-500.0,0.00020899,2]
[315884494,1709245841785,-649.08,0.00020899,2]
[315884495,1709245841794,-500.0,0.00020899,2]
[315884496,1709245841803,-500.0,0.00020899,2]
[315884497,1709245841812,-366.49,0.00020899,2]
[315884498,1709245841823,-459.57,0.00020899,2]
[315884499,1709245841834,-1137.87,0.00020899,2]
[315884500,1709245841847,-1137.87,0.00020899,2]
[315884501,1709245841858,-500.0,0.00020899,2]
[315884502,1709245841870,-500.0,0.00020899,2]
[315884503,1709245841881,-500.72232009,0.00020899,2]
[315884504,1709245841892,-256.47820467,0.00020899,2]
[315884505,1709245841904,-500.0,0.00020899,2]
[315884506,1709245841915,-500.0,0.00020899,2]
[315884507,1709245841925,-500.0,0.00020899,2]
[315884508,1709245841935,-500.0,0.00020899,2]
[315884509,1709245841945,-613.57,0.00020899,2]
[315884510,1709245841955,-513.05326981,0.00020899,2]
[315884511,1709245841970,-500.0,0.00020899,2]
[315884512,1709245841981,-500.0,0.00020899,2]
[315884513,1709245841991,-238.93595278,0.00020899,2]
[315884514,1709245842002,-85685.89042837,0.000209,2]
[315884515,1709245842013,-500.0,0.00020987,2]
[315884516,1709245842024,-500.0,0.00020996,2]
[315884517,1709245842034,-500.0,0.00020996,2]
[315884518,1709245842045,-500.0,0.00020996,2]
[315884519,1709245842056,-172.23853414,0.00020996,2]
[315884520,1709245842066,-500.0,0.00020996,2]
[315884521,1709245842077,-500.0,0.00020996,2]
[315884522,1709245842088,-500.0,0.00020996,2]
[315884523,1709245842100,-500.0,0.00020996,2]
[315884524,1709245842111,-500.0,0.00020996,2]
[315884525,1709245842122,-500.0,0.00020996,2]
[315884526,1709245842133,-170.14112265,0.00020996,2]
[315884527,1709245842143,-500.0,0.00020996,2]
[315884528,1709245842153,-500.0,0.00020996,2]
[315884529,1709245842162,-500.0,0.00020996,2]
[315884530,1709245842172,-500.0,0.00020996,2]
[315884531,1709245842184,-301.49167869,0.00020996,2]
[315884532,1709245842194,-500.0,0.00020997,2]
[315884533,1709245842205,-500.0,0.00020997,2]
[315884534,1709245842215,-500.0,0.00020997,2]
[315884535,1709245842225,-453.41,0.00020997,2]
[315884536,1709245842236,-500.0,0.00020997,2]
[315884537,1709245842246,-500.0,0.00020997,2]
[315884538,1709245842256,-184.00394714,0.00020997,2]
[315884586,1709245843708,-500.0,0.00020547,2]
[315884587,1709245843719,-315.99605286,0.00020997,2]
[315884588,1709245843729,-500.0,0.00020997,2]
[315884589,1709245843740,-5684.00394714,0.00020998,2]
[315884655,1709247032355,-428.53017255,0.00018899,2]
[315884657,1709247032365,-455.48678639,0.000189,2]
[315884659,1709247032376,-101.94583423,0.000189,2]
[315884661,1709247032386,-222.07916577,0.00019,2]
[315884757,1709247038537,-872.65083423,0.00019,2]
[315884759,1709247038547,-773.62142736,0.000196,2]
[315884761,1709247038559,-1987.33,0.000196,2]
[315884800,1709247041274,-692.48195128,0.000196,2]
[315884802,1709247041285,-1497.75412509,0.000196,2]
[315884804,1709247041296,-6883.53332373,0.000196,2]
[315884806,1709247041309,-3780.91867614,0.000196,2]
[315884809,1709247041321,-155.0,0.0002,2]
[315884811,1709247041330,-2007.18919689,0.000206,2]
[315884812,1709247041339,-620.63479538,0.00020655,2]
[315884814,1709247041348,-156.10747341,0.00020797,2]
[315884816,1709247041358,-2500.0,0.000208,3]
[315884818,1709247041367,-156.10747339,0.00020849,2]
[315884820,1709247041376,-575.77,0.00020894,2]
[315884822,1709247041385,-500.0,0.00020894,2]
[315884824,1709247041394,-500.0,0.00020894,2]
[315884826,1709247041404,-500.0,0.00020895,2]
[315884828,1709247041413,-500.0,0.00020895,2]
[315884830,1709247041423,-500.0,0.00020895,2]
[315884832,1709247041432,-500.0,0.00020895,2]
[315884834,1709247041442,-500.0,0.00020895,2]
[315884836,1709247041450,-500.0,0.00020895,2]
[315884838,1709247041459,-268.45713728,0.00020895,2]
[315884840,1709247041468,-500.23118459,0.00020895,2]
[315884842,1709247041478,-500.0,0.00020895,2]
[315884844,1709247041490,-517.52,0.00020895,2]
[315884846,1709247041499,-500.0,0.00020895,2]
[315884848,1709247041508,-500.0,0.00020895,2]
[315884850,1709247041517,-500.0,0.00020895,2]
[315884852,1709247041527,-500.0,0.00020895,2]
[315884854,1709247041536,-500.0,0.00020895,2]
[315884855,1709247041545,-500.0,0.00020895,2]
[315884856,1709247041554,-388.69595869,0.00020895,2]
[315884857,1709247041564,-500.0,0.00020895,2]
[315884858,1709247041573,-500.0,0.00020895,2]
[315884859,1709247041583,-500.0,0.00020895,2]
[315884860,1709247041592,-500.0,0.00020895,2]
[315884861,1709247041601,-585.00149845,0.00020895,2]
[315884862,1709247041610,-500.0,0.00020895,2]
[315884863,1709247041619,-500.0,0.00020895,2]
[315884864,1709247041628,-500.0,0.00020895,2]
[315884865,1709247041637,-500.0,0.00020895,2]
[315884866,1709247041646,-500.0,0.00020895,2]
[315884867,1709247041656,-1664.12,0.00020895,2]
[315884868,1709247041665,-500.0,0.00020895,2]
[315884869,1709247041674,-500.0,0.00020895,2]
[315884870,1709247041684,-500.0,0.00020895,2]
[315884871,1709247041693,-500.0,0.00020895,2]
[315884872,1709247041703,-500.0,0.00020895,2]
[315884873,1709247041712,-500.0,0.00020895,2]
[315884874,1709247041721,-500.0,0.00020895,2]
[315884875,1709247041731,-500.0,0.00020895,2]
[315884876,1709247041741,-500.0,0.00020895,2]
[315884877,1709247041750,-500.0,0.00020895,2]
[315884878,1709247041759,-523.6195752,0.00020895,2]
[315884879,1709247041769,-500.0,0.00020895,2]
[315884881,1709247041779,-500.0,0.00020895,2]
[315884883,1709247041788,-500.0,0.00020895,2]
[315884885,1709247041810,-500.0,0.00020895,2]
[315884887,1709247041824,-500.61124029,0.00020895,2]
[315884889,1709247041833,-500.0,0.00020895,2]
[315884891,1709247041842,-500.0,0.00020895,2]
[315884893,1709247041851,-500.0,0.00020895,2]
[315884895,1709247041860,-496.54191281,0.00020895,2]
[315884897,1709247041869,-500.50676914,0.00020895,2]
[315884899,1709247041878,-500.0,0.00020895,2]
[315884901,1709247041887,-500.0,0.00020895,2]
[315884903,1709247041896,-500.0,0.00020895,2]
[315884905,1709247041905,-500.0,0.00020895,2]
[315884906,1709247041914,-500.0,0.00020895,2]
[315884907,1709247041923,-500.0,0.00020895,2]
[315884909,1709247041932,-500.0,0.00020895,2]
[315884910,1709247041943,-500.0,0.00020895,2]
[315884911,1709247041952,-500.0,0.00020895,2]
[315884912,1709247041963,-500.0,0.00020895,2]
[315884913,1709247041973,-500.0,0.00020895,2]
[315884914,1709247041982,-102.99272446,0.00020895,2]
[315884915,1709247041994,-397.00727554,0.00020895,2]
[315884916,1709247042003,-500.0,0.00020895,2]
[315884917,1709247042012,-346.64806544,0.00020895,2]